[Event "Titled Tuesday Blitz September 13 Early 2022"]
[White "Prohaszka, Peter"]
[Black "Lenderman, Aleksandr"]
[WhiteFideId "726265"]
[BlackFideId "2021285"]
[WhiteElo "2626"]
[BlackElo "2607"]
[Result "0-1"]
[Round "04"]
[TimeControl "180+1"]
[Date "2022.09.13"]
[WhiteClock "0:00:01"]
[BlackClock "0:00:24"]

1. d4 {[%clk 0:03:00]}  e6 {[%clk 0:02:59]} 2. c4 {[%clk 0:03:01]}  b6 {[%clk 0:02:59]} 3. Nf3 {[%clk 0:03:00]}  Bb7 {[%clk 0:02:59]} 4. Nbd2 {[%clk 0:03:00]}  c5 {[%clk 0:02:57]} 5. dxc5 {[%clk 0:02:50]}  Bxc5 {[%clk 0:02:57]} 6. e3 {[%clk 0:02:44]}  Nf6 {[%clk 0:02:56]} 7. a3 {[%clk 0:02:35]}  O-O {[%clk 0:02:56]} 8. b4 {[%clk 0:02:35]}  Be7 {[%clk 0:02:56]} 9. Bb2 {[%clk 0:02:36]}  a5 {[%clk 0:02:56]} 10. b5 {[%clk 0:02:33]}  d6 {[%clk 0:02:57]} 11. g3 {[%clk 0:02:31]}  Nbd7 {[%clk 0:02:56]} 12. Bg2 {[%clk 0:02:31]}  Nc5 {[%clk 0:02:56]} 13. O-O {[%clk 0:02:32]}  e5 {[%clk 0:02:41]} 14. Nb3 {[%clk 0:02:23]}  Na4 {[%clk 0:02:37]} 15. Qe2 {[%clk 0:01:56]}  Qc7 {[%clk 0:02:29]} 16. Rfc1 {[%clk 0:01:55]}  Rfc8 {[%clk 0:02:28]} 17. Ra2 {[%clk 0:01:47]}  Nxb2 {[%clk 0:02:26]} 18. Rxb2 {[%clk 0:01:45]}  Qd7 {[%clk 0:02:22]} 19. a4 {[%clk 0:01:41]}  Rc7 {[%clk 0:02:21]} 20. Rd2 {[%clk 0:01:25]}  Qc8 {[%clk 0:02:11]} 21. Rdd1 {[%clk 0:01:21]}  Ne4 {[%clk 0:02:09]} 22. Nfd2 {[%clk 0:01:17]}  Nxd2 {[%clk 0:02:06]} 23. Rxd2 {[%clk 0:01:11]}  Bxg2 {[%clk 0:02:01]} 24. Kxg2 {[%clk 0:01:11]}  Qe6 {[%clk 0:01:57]} 25. Rd5 {[%clk 0:00:57]}  f5 {[%clk 0:01:55]} 26. e4 {[%clk 0:00:42]}  Rf8 {[%clk 0:01:53]} 27. exf5 {[%clk 0:00:38]}  Qxf5 {[%clk 0:01:48]} 28. Rf1 {[%clk 0:00:36]}  Qc8 {[%clk 0:01:38]} 29. Nd2 {[%clk 0:00:31]}  Rc5 {[%clk 0:01:34]} 30. Qd3 {[%clk 0:00:28]}  Qb7 {[%clk 0:01:33]} 31. Ne4 {[%clk 0:00:25]}  Rxd5 {[%clk 0:01:33]} 32. cxd5 {[%clk 0:00:24]}  Qc8 {[%clk 0:01:34]} 33. Re1 {[%clk 0:00:20]}  h6 {[%clk 0:01:34]} 34. Re2 {[%clk 0:00:20]}  h5 {[%clk 0:01:31]} 35. Rc2 {[%clk 0:00:20]}  Qf5 {[%clk 0:01:31]} 36. h3 {[%clk 0:00:19]}  g5 {[%clk 0:01:22]} 37. Rc6 {[%clk 0:00:18]}  g4 {[%clk 0:01:22]} 38. h4 {[%clk 0:00:16]}  Qg6 {[%clk 0:01:21]} 39. Qe3 {[%clk 0:00:15]}  Rf3 {[%clk 0:01:21]} 40. Qe2 {[%clk 0:00:14]}  Qf7 {[%clk 0:01:11]} 41. Qd2 {[%clk 0:00:08]}  Ra3 {[%clk 0:01:11]} 42. Rc8+ {[%clk 0:00:07]}  Kg7 {[%clk 0:01:11]} 43. Rc7 {[%clk 0:00:07]}  Ra1 {[%clk 0:00:56]} 44. Kh2 {[%clk 0:00:07]}  Kg6 {[%clk 0:00:43]} 45. Ng5 {[%clk 0:00:04]}  Qf5 {[%clk 0:00:27]} 46. Rxe7 {[%clk 0:00:03]}  Qb1 {[%clk 0:00:27]} 47. Re6+ {[%clk 0:00:01]}  Kf5 {[%clk 0:00:24]} 0-1


[Site "https://www.chess.com"]

[Event "Titled Tuesday Blitz September 13 Early 2022"]
[White "Samunenkov, Ihor"]
[Black "Ter-Sahakyan, Samvel"]
[WhiteFideId "14187086"]
[BlackFideId "13302531"]
[WhiteElo "2441"]
[BlackElo "2604"]
[Result "0-1"]
[Round "04"]
[TimeControl "180+1"]
[Date "2022.09.13"]
[WhiteClock "0:00:01"]
[BlackClock "0:00:11"]

1. d4 {[%clk 0:03:00]}  Nf6 {[%clk 0:02:59]} 2. c4 {[%clk 0:03:00]}  e6 {[%clk 0:02:59]} 3. Nf3 {[%clk 0:03:01]}  d5 {[%clk 0:02:59]} 4. g3 {[%clk 0:03:01]}  dxc4 {[%clk 0:02:58]} 5. Bg2 {[%clk 0:03:01]}  a6 {[%clk 0:02:57]} 6. O-O {[%clk 0:03:00]}  Nc6 {[%clk 0:02:58]} 7. Nbd2 {[%clk 0:03:01]}  b5 {[%clk 0:02:51]} 8. b3 {[%clk 0:03:01]}  c3 {[%clk 0:02:51]} 9. Nb1 {[%clk 0:03:01]}  b4 {[%clk 0:02:52]} 10. a3 {[%clk 0:03:01]}  Rb8 {[%clk 0:02:46]} 11. axb4 {[%clk 0:03:00]}  Bxb4 {[%clk 0:02:46]} 12. Qd3 {[%clk 0:03:00]}  e5 {[%clk 0:02:38]} 13. Nxc3 {[%clk 0:02:54]}  exd4 {[%clk 0:02:34]} 14. Na4 {[%clk 0:02:50]}  O-O {[%clk 0:02:26]} 15. Bb2 {[%clk 0:02:49]}  Bg4 {[%clk 0:02:10]} 16. Rac1 {[%clk 0:02:35]}  Bxf3 {[%clk 0:02:04]} 17. exf3 {[%clk 0:02:18]}  Na5 {[%clk 0:01:32]} 18. Rfd1 {[%clk 0:01:01]}  c5 {[%clk 0:01:17]} 19. Nxc5 {[%clk 0:00:56]}  Bxc5 {[%clk 0:01:17]} 20. Rxc5 {[%clk 0:00:56]}  Nxb3 {[%clk 0:01:12]} 21. Rc4 {[%clk 0:00:56]}  Re8 {[%clk 0:00:55]} 22. Bxd4 {[%clk 0:00:52]}  Nxd4 {[%clk 0:00:53]} 23. Rxd4 {[%clk 0:00:44]}  Qa5 {[%clk 0:00:52]} 24. f4 {[%clk 0:00:42]}  Re1+ {[%clk 0:00:51]} 25. Rxe1 {[%clk 0:00:42]}  Qxe1+ {[%clk 0:00:50]} 26. Bf1 {[%clk 0:00:34]}  Re8 {[%clk 0:00:24]} 27. Rd8 {[%clk 0:00:15]}  a5 {[%clk 0:00:23]} 28. Rxe8+ {[%clk 0:00:12]}  Qxe8 {[%clk 0:00:23]} 29. Qa6 {[%clk 0:00:12]}  Qd8 {[%clk 0:00:23]} 30. Bc4 {[%clk 0:00:08]}  g6 {[%clk 0:00:11]} 31. Qa7 {[%clk 0:00:08]}  Qd1+ {[%clk 0:00:07]} 32. Kg2 {[%clk 0:00:07]}  Qd7 {[%clk 0:00:08]} 33. Qxa5 {[%clk 0:00:07]}  Qc6+ {[%clk 0:00:08]} 34. Kg1 {[%clk 0:00:05]}  Qxc4 {[%clk 0:00:09]} 35. Qd8+ {[%clk 0:00:05]}  Kg7 {[%clk 0:00:09]} 36. h3 {[%clk 0:00:06]}  Qd5 {[%clk 0:00:09]} 37. Qe7 {[%clk 0:00:05]}  Qf3 {[%clk 0:00:08]} 38. Qe5 {[%clk 0:00:05]}  Qe4 {[%clk 0:00:08]} 39. Qd6 {[%clk 0:00:04]}  Qe1+ {[%clk 0:00:08]} 40. Kg2 {[%clk 0:00:04]}  Qe6 {[%clk 0:00:08]} 41. Qd4 {[%clk 0:00:04]}  Qd5+ {[%clk 0:00:08]} 42. Qxd5 {[%clk 0:00:04]}  Nxd5 {[%clk 0:00:09]} 43. Kf3 {[%clk 0:00:05]}  f5 {[%clk 0:00:09]} 44. Ke2 {[%clk 0:00:04]}  Kf6 {[%clk 0:00:08]} 45. Kd3 {[%clk 0:00:05]}  Ne7 {[%clk 0:00:08]} 46. Kd4 {[%clk 0:00:05]}  Ke6 {[%clk 0:00:09]} 47. h4 {[%clk 0:00:05]}  h5 {[%clk 0:00:09]} 48. Kc5 {[%clk 0:00:05]}  Nd5 {[%clk 0:00:09]} 49. Kd4 {[%clk 0:00:05]}  Nf6 {[%clk 0:00:09]} 50. f3 {[%clk 0:00:05]}  Kd6 {[%clk 0:00:09]} 51. Kc4 {[%clk 0:00:05]}  Nd5 {[%clk 0:00:10]} 52. Kd4 {[%clk 0:00:06]}  Ne7 {[%clk 0:00:10]} 53. Kc4 {[%clk 0:00:06]}  Nc6 {[%clk 0:00:11]} 54. Kd3 {[%clk 0:00:07]}  Kd5 {[%clk 0:00:10]} 55. Ke3 {[%clk 0:00:07]}  Nd4 {[%clk 0:00:11]} 56. Kf2 {[%clk 0:00:04]}  Ne6 {[%clk 0:00:11]} 57. Ke3 {[%clk 0:00:05]}  Kc4 {[%clk 0:00:11]} 58. g4 {[%clk 0:00:02]}  Nc5 {[%clk 0:00:11]} 59. gxh5 {[%clk 0:00:01]}  gxh5 {[%clk 0:00:11]} 0-1


[Site "https://www.chess.com"]

[Event "Titled Tuesday Blitz September 13 Early 2022"]
[White "Sarana, Alexey"]
[Black "Donchenko, Alexander"]
[WhiteFideId "24133795"]
[BlackFideId "24603295"]
[WhiteElo "2689"]
[BlackElo "2572"]
[Result "1-0"]
[Round "04"]
[TimeControl "180+1"]
[Date "2022.09.13"]
[WhiteClock "0:00:02"]
[BlackClock "0:00:02"]

1. c4 {[%clk 0:03:00]}  Nf6 {[%clk 0:02:59]} 2. Nc3 {[%clk 0:03:01]}  g6 {[%clk 0:03:00]} 3. d4 {[%clk 0:02:58]}  Bg7 {[%clk 0:03:00]} 4. e4 {[%clk 0:02:59]}  O-O {[%clk 0:03:01]} 5. Be2 {[%clk 0:02:59]}  d6 {[%clk 0:03:01]} 6. Be3 {[%clk 0:03:00]}  c5 {[%clk 0:03:00]} 7. d5 {[%clk 0:03:00]}  e6 {[%clk 0:02:58]} 8. Nf3 {[%clk 0:03:01]}  exd5 {[%clk 0:02:58]} 9. cxd5 {[%clk 0:03:02]}  Bg4 {[%clk 0:02:59]} 10. Nd2 {[%clk 0:03:02]}  Bxe2 {[%clk 0:02:59]} 11. Qxe2 {[%clk 0:03:02]}  a6 {[%clk 0:03:00]} 12. a4 {[%clk 0:03:01]}  Nbd7 {[%clk 0:03:00]} 13. O-O {[%clk 0:03:02]}  Re8 {[%clk 0:03:00]} 14. Bf4 {[%clk 0:03:01]}  Ne5 {[%clk 0:02:54]} 15. h3 {[%clk 0:03:01]}  Qc7 {[%clk 0:02:53]} 16. Bh2 {[%clk 0:03:01]}  c4 {[%clk 0:02:49]} 17. Bxe5 {[%clk 0:02:52]}  Rxe5 {[%clk 0:02:49]} 18. Qxc4 {[%clk 0:02:49]}  Qb6 {[%clk 0:02:45]} 19. Qd3 {[%clk 0:02:47]}  Ree8 {[%clk 0:02:41]} 20. a5 {[%clk 0:02:43]}  Qc5 {[%clk 0:02:33]} 21. Rfc1 {[%clk 0:02:39]}  Nd7 {[%clk 0:02:23]} 22. Nc4 {[%clk 0:02:10]}  Rac8 {[%clk 0:02:17]} 23. Ra4 {[%clk 0:02:07]}  Qc7 {[%clk 0:01:51]} 24. Rb4 {[%clk 0:00:53]}  Nc5 {[%clk 0:01:47]} 25. Qf3 {[%clk 0:00:45]}  Bxc3 {[%clk 0:01:34]} 26. Qxc3 {[%clk 0:00:45]}  Nxe4 {[%clk 0:01:32]} 27. Qd4 {[%clk 0:00:45]}  Nc5 {[%clk 0:01:05]} 28. Nb6 {[%clk 0:00:35]}  Rcd8 {[%clk 0:01:04]} 29. Kh2 {[%clk 0:00:34]}  Qe7 {[%clk 0:00:59]} 30. Rc3 {[%clk 0:00:33]}  Qg5 {[%clk 0:00:48]} 31. Qf4 {[%clk 0:00:30]}  Qxf4+ {[%clk 0:00:40]} 32. Rxf4 {[%clk 0:00:31]}  Re2 {[%clk 0:00:38]} 33. b4 {[%clk 0:00:30]}  Ne4 {[%clk 0:00:28]} 34. Rc7 {[%clk 0:00:29]}  f5 {[%clk 0:00:28]} 35. Rxb7 {[%clk 0:00:25]}  Nxf2 {[%clk 0:00:26]} 36. b5 {[%clk 0:00:21]}  Nd3 {[%clk 0:00:20]} 37. Rf1 {[%clk 0:00:21]}  axb5 {[%clk 0:00:17]} 38. Nd7 {[%clk 0:00:15]}  Ra2 {[%clk 0:00:13]} 39. Nf6+ {[%clk 0:00:15]}  Kf8 {[%clk 0:00:14]} 40. Nxh7+ {[%clk 0:00:15]}  Kg8 {[%clk 0:00:15]} 41. Nf6+ {[%clk 0:00:16]}  Kf8 {[%clk 0:00:15]} 42. Rd1 {[%clk 0:00:09]}  Nc5 {[%clk 0:00:14]} 43. Ra7 {[%clk 0:00:09]}  b4 {[%clk 0:00:13]} 44. Re1 {[%clk 0:00:08]}  Ne4 {[%clk 0:00:07]} 45. Nxe4 {[%clk 0:00:08]}  fxe4 {[%clk 0:00:07]} 46. Rxe4 {[%clk 0:00:08]}  Rb8 {[%clk 0:00:08]} 47. a6 {[%clk 0:00:09]}  b3 {[%clk 0:00:08]} 48. Rb7 {[%clk 0:00:09]}  Re8 {[%clk 0:00:05]} 49. Rf4+ {[%clk 0:00:01]}  Kg8 {[%clk 0:00:06]} 50. Rg4 {[%clk 0:00:02]}  Re3 {[%clk 0:00:01]} 51. Rxg6+ {[%clk 0:00:02]}  Kf8 {[%clk 0:00:02]} 52. a7 {[%clk 0:00:02]}  b2 {[%clk 0:00:02]} 53. Rh6 {[%clk 0:00:02]}  Kg8 {[%clk 0:00:02]} 54. Rg6+ {[%clk 0:00:02]}  Kf8 {[%clk 0:00:02]} 55. Rh6 {[%clk 0:00:02]}  Kg8 {[%clk 0:00:03]} 56. Rxd6 {[%clk 0:00:03]}  Rxa7 {[%clk 0:00:02]} 57. Rd8+ {[%clk 0:00:02]} 1-0


[Site "https://www.chess.com"]

[Event "Titled Tuesday Blitz September 13 Early 2022"]
[White "Solon, Nathan"]
[Black "Harsha Bharathakoti"]
[WhiteFideId "2017229"]
[BlackFideId "5078776"]
[WhiteElo "2613"]
[BlackElo "2523"]
[Result "0-1"]
[Round "04"]
[TimeControl "180+1"]
[Date "2022.09.13"]
[WhiteClock "0:00:47"]
[BlackClock "0:01:04"]

1. e4 {[%clk 0:03:00]}  c5 {[%clk 0:02:55]} 2. Nf3 {[%clk 0:03:01]}  Nc6 {[%clk 0:02:55]} 3. d3 {[%clk 0:03:01]}  g6 {[%clk 0:02:53]} 4. g3 {[%clk 0:03:01]}  Bg7 {[%clk 0:02:54]} 5. Bg2 {[%clk 0:03:02]}  e5 {[%clk 0:02:55]} 6. O-O {[%clk 0:03:02]}  Nge7 {[%clk 0:02:55]} 7. c3 {[%clk 0:03:01]}  O-O {[%clk 0:02:55]} 8. Re1 {[%clk 0:03:00]}  d6 {[%clk 0:02:55]} 9. a3 {[%clk 0:03:00]}  a5 {[%clk 0:02:48]} 10. a4 {[%clk 0:03:00]}  h6 {[%clk 0:02:49]} 11. Na3 {[%clk 0:03:00]}  f5 {[%clk 0:02:49]} 12. exf5 {[%clk 0:02:38]}  gxf5 {[%clk 0:02:47]} 13. Nb5 {[%clk 0:02:31]}  Ng6 {[%clk 0:02:41]} 14. Qb3+ {[%clk 0:02:23]}  Kh7 {[%clk 0:02:41]} 15. Qd5 {[%clk 0:02:15]}  Rf6 {[%clk 0:02:41]} 16. Be3 {[%clk 0:01:59]}  Nce7 {[%clk 0:02:30]} 17. Qb3 {[%clk 0:01:54]}  f4 {[%clk 0:02:22]} 18. Bd2 {[%clk 0:01:50]}  Bg4 {[%clk 0:02:14]} 19. Rf1 {[%clk 0:01:32]}  Qd7 {[%clk 0:01:58]} 20. Bc1 {[%clk 0:01:05]}  Raf8 {[%clk 0:01:47]} 21. Nd2 {[%clk 0:01:05]}  f3 {[%clk 0:01:48]} 22. Bh1 {[%clk 0:01:04]}  Nf4 {[%clk 0:01:27]} 23. gxf4 {[%clk 0:00:53]}  Rg6 {[%clk 0:01:26]} 24. Ne4 {[%clk 0:00:52]}  exf4 {[%clk 0:01:10]} 25. Re1 {[%clk 0:00:47]}  Be6+ {[%clk 0:01:04]} 0-1


[Site "https://www.chess.com"]

[Event "Titled Tuesday Blitz September 13 Early 2022"]
[White "Timmermans, Mark"]
[Black "Milikow, Yoav"]
[WhiteFideId "1026399"]
[BlackFideId "2822237"]
[WhiteElo "2460"]
[BlackElo "2341"]
[Result "0-1"]
[Round "04"]
[TimeControl "180+1"]
[Date "2022.09.13"]
[WhiteClock "0:00:48"]
[BlackClock "0:00:18"]

1. Nf3 {[%clk 0:03:00]}  d5 {[%clk 0:02:59]} 2. g3 {[%clk 0:02:53]}  g6 {[%clk 0:02:56]} 3. Bg2 {[%clk 0:02:53]}  Bg7 {[%clk 0:02:56]} 4. O-O {[%clk 0:02:53]}  e5 {[%clk 0:02:52]} 5. d3 {[%clk 0:02:52]}  Ne7 {[%clk 0:02:52]} 6. c4 {[%clk 0:02:50]}  d4 {[%clk 0:02:48]} 7. b4 {[%clk 0:02:48]}  O-O {[%clk 0:02:48]} 8. a4 {[%clk 0:02:43]}  c5 {[%clk 0:02:43]} 9. bxc5 {[%clk 0:02:42]}  Na6 {[%clk 0:02:41]} 10. Ba3 {[%clk 0:02:36]}  Nc6 {[%clk 0:02:38]} 11. Nbd2 {[%clk 0:02:33]}  f5 {[%clk 0:02:38]} 12. Nb3 {[%clk 0:02:33]}  Re8 {[%clk 0:02:30]} 13. Nfd2 {[%clk 0:02:32]}  Bf8 {[%clk 0:02:26]} 14. Bd5+ {[%clk 0:02:31]}  Be6 {[%clk 0:02:22]} 15. e4 {[%clk 0:02:09]}  dxe3 {[%clk 0:02:20]} 16. fxe3 {[%clk 0:02:10]}  Bxd5 {[%clk 0:02:18]} 17. cxd5 {[%clk 0:02:11]}  Qxd5 {[%clk 0:02:18]} 18. Qc2 {[%clk 0:02:09]}  Rad8 {[%clk 0:02:09]} 19. e4 {[%clk 0:02:05]}  Qxd3 {[%clk 0:02:04]} 20. Qxd3 {[%clk 0:02:05]}  Rxd3 {[%clk 0:02:04]} 21. exf5 {[%clk 0:02:05]}  e4 {[%clk 0:01:52]} 22. f6 {[%clk 0:02:01]}  Kf7 {[%clk 0:01:51]} 23. Rab1 {[%clk 0:01:53]}  Re6 {[%clk 0:01:14]} 24. Rfe1 {[%clk 0:01:38]}  e3 {[%clk 0:01:05]} 25. Nf3 {[%clk 0:01:38]}  Rxf6 {[%clk 0:01:01]} 26. Ng5+ {[%clk 0:01:36]}  Kg8 {[%clk 0:01:01]} 27. Bb2 {[%clk 0:01:28]}  Rf5 {[%clk 0:00:55]} 28. Nc1 {[%clk 0:01:22]}  Rd2 {[%clk 0:00:49]} 29. Ne4 {[%clk 0:01:22]}  Nxc5 {[%clk 0:00:40]} 30. Nf6+ {[%clk 0:01:01]}  Kf7 {[%clk 0:00:38]} 31. Ng4 {[%clk 0:01:01]}  Nxa4 {[%clk 0:00:32]} 32. Nxe3 {[%clk 0:00:54]}  Rxb2 {[%clk 0:00:19]} 33. Rxb2 {[%clk 0:00:50]}  Nxb2 {[%clk 0:00:18]} 34. Nxf5 {[%clk 0:00:51]}  gxf5 {[%clk 0:00:19]} 35. Nb3 {[%clk 0:00:50]}  a5 {[%clk 0:00:18]} 36. Rb1 {[%clk 0:00:50]}  Nc4 {[%clk 0:00:18]} 37. Rc1 {[%clk 0:00:48]}  b5 {[%clk 0:00:18]} 0-1


[Site "https://www.chess.com"]

[Event "Titled Tuesday Blitz September 13 Early 2022"]
[White "Zhigalko, Sergei"]
[Black "Bodnaruk, Anastasia"]
[WhiteFideId "13502956"]
[BlackFideId "4181751"]
[WhiteElo "2662"]
[BlackElo "2332"]
[Result "1-0"]
[Round "04"]
[TimeControl "180+1"]
[Date "2022.09.13"]
[WhiteClock "0:01:09"]
[BlackClock "0:00:04"]

1. e4 {[%clk 0:03:00]}  c5 {[%clk 0:03:00]} 2. Nf3 {[%clk 0:03:00]}  d6 {[%clk 0:03:00]} 3. d4 {[%clk 0:03:01]}  cxd4 {[%clk 0:03:01]} 4. Qxd4 {[%clk 0:03:02]}  Nc6 {[%clk 0:02:57]} 5. Bb5 {[%clk 0:03:01]}  Bd7 {[%clk 0:02:57]} 6. Bxc6 {[%clk 0:03:02]}  Bxc6 {[%clk 0:02:58]} 7. Nc3 {[%clk 0:03:02]}  Nf6 {[%clk 0:02:57]} 8. Bg5 {[%clk 0:03:03]}  e6 {[%clk 0:02:58]} 9. O-O-O {[%clk 0:03:03]}  Be7 {[%clk 0:02:58]} 10. Rhe1 {[%clk 0:03:03]}  O-O {[%clk 0:02:58]} 11. Kb1 {[%clk 0:03:04]}  Qa5 {[%clk 0:02:45]} 12. Qd2 {[%clk 0:03:04]}  Qa6 {[%clk 0:02:40]} 13. Nd4 {[%clk 0:03:04]}  Rfd8 {[%clk 0:02:31]} 14. f3 {[%clk 0:03:04]}  b5 {[%clk 0:02:30]} 15. g4 {[%clk 0:03:04]}  b4 {[%clk 0:02:30]} 16. Nce2 {[%clk 0:03:04]}  Rab8 {[%clk 0:02:28]} 17. Ng3 {[%clk 0:03:04]}  Be8 {[%clk 0:02:11]} 18. Nh5 {[%clk 0:03:00]}  Qa5 {[%clk 0:01:57]} 19. h4 {[%clk 0:02:04]}  Rb6 {[%clk 0:01:08]} 20. Bxf6 {[%clk 0:01:51]}  Bxf6 {[%clk 0:01:06]} 21. Nxf6+ {[%clk 0:01:50]}  gxf6 {[%clk 0:01:06]} 22. Qh6 {[%clk 0:01:38]}  Ra6 {[%clk 0:00:49]} 23. Nf5 {[%clk 0:01:14]}  exf5 {[%clk 0:00:16]} 24. gxf5 {[%clk 0:01:11]}  Qxa2+ {[%clk 0:00:14]} 25. Kc1 {[%clk 0:01:11]}  Qa1+ {[%clk 0:00:04]} 26. Kd2 {[%clk 0:01:09]}  Qxb2 {[%clk 0:00:04]} 27. Rg1+ {[%clk 0:01:09]} 1-0


[Site "https://www.chess.com"]

[Event "Titled Tuesday Blitz September 13 Early 2022"]
[White "Bachmann, Axel"]
[Black "Andreikin, Dmitry"]
[WhiteFideId "3700488"]
[BlackFideId "4158814"]
[WhiteElo "2595"]
[BlackElo "2736"]
[Result "0-1"]
[Round "05"]
[TimeControl "180+1"]
[Date "2022.09.13"]
[WhiteClock "0:00:26"]
[BlackClock "0:00:24"]

1. Nf3 {[%clk 0:02:50]}  Nf6 {[%clk 0:02:58]} 2. c4 {[%clk 0:02:42]}  g6 {[%clk 0:02:55]} 3. b3 {[%clk 0:02:38]}  Bg7 {[%clk 0:02:54]} 4. Bb2 {[%clk 0:02:37]}  O-O {[%clk 0:02:55]} 5. g3 {[%clk 0:02:35]}  a6 {[%clk 0:02:50]} 6. Bg2 {[%clk 0:02:33]}  b5 {[%clk 0:02:51]} 7. d3 {[%clk 0:02:20]}  Bb7 {[%clk 0:02:50]} 8. O-O {[%clk 0:02:13]}  c5 {[%clk 0:02:47]} 9. Nc3 {[%clk 0:02:10]}  b4 {[%clk 0:02:38]} 10. Na4 {[%clk 0:02:10]}  d6 {[%clk 0:02:39]} 11. d4 {[%clk 0:02:09]}  Nbd7 {[%clk 0:02:36]} 12. d5 {[%clk 0:01:59]}  a5 {[%clk 0:02:30]} 13. Qc2 {[%clk 0:01:58]}  e5 {[%clk 0:02:05]} 14. dxe6 {[%clk 0:01:54]}  fxe6 {[%clk 0:02:05]} 15. Rfd1 {[%clk 0:01:53]}  Qe7 {[%clk 0:02:04]} 16. a3 {[%clk 0:01:53]}  Ne4 {[%clk 0:01:55]} 17. axb4 {[%clk 0:01:52]}  axb4 {[%clk 0:01:54]} 18. Nd2 {[%clk 0:01:52]}  Bxb2 {[%clk 0:01:42]} 19. Qxb2 {[%clk 0:01:47]}  Ndf6 {[%clk 0:01:13]} 20. Nxe4 {[%clk 0:01:34]}  Bxe4 {[%clk 0:01:12]} 21. Bxe4 {[%clk 0:01:29]}  Nxe4 {[%clk 0:01:13]} 22. f3 {[%clk 0:01:29]}  Nf6 {[%clk 0:01:12]} 23. Qd2 {[%clk 0:01:28]}  d5 {[%clk 0:01:07]} 24. Qe3 {[%clk 0:01:15]}  d4 {[%clk 0:01:03]} 25. Qe5 {[%clk 0:01:14]}  Nd7 {[%clk 0:01:03]} 26. Qe4 {[%clk 0:01:10]}  Ra7 {[%clk 0:00:57]} 27. Nb2 {[%clk 0:01:09]}  Ra3 {[%clk 0:00:57]} 28. Nd3 {[%clk 0:01:08]}  Qd6 {[%clk 0:00:51]} 29. Rxa3 {[%clk 0:01:05]}  bxa3 {[%clk 0:00:52]} 30. Ra1 {[%clk 0:01:06]}  Qa6 {[%clk 0:00:52]} 31. Nf4 {[%clk 0:00:57]}  Rf6 {[%clk 0:00:48]} 32. g4 {[%clk 0:00:45]}  g5 {[%clk 0:00:37]} 33. Nd3 {[%clk 0:00:42]}  h6 {[%clk 0:00:37]} 34. h4 {[%clk 0:00:41]}  a2 {[%clk 0:00:33]} 35. hxg5 {[%clk 0:00:39]}  hxg5 {[%clk 0:00:34]} 36. Ne5 {[%clk 0:00:37]}  Nf8 {[%clk 0:00:24]} 37. Qc2 {[%clk 0:00:29]}  Qd6 {[%clk 0:00:24]} 38. Qe4 {[%clk 0:00:26]}  Rf4 {[%clk 0:00:24]} 0-1


[Site "https://www.chess.com"]

[Event "Titled Tuesday Blitz September 13 Early 2022"]
[White "Bluebaum, Matthias"]
[Black "Ibrahimli, Murad"]
[WhiteFideId "24651516"]
[BlackFideId "13410229"]
[WhiteElo "2633"]
[BlackElo "2109"]
[Result "1-0"]
[Round "05"]
[TimeControl "180+1"]
[Date "2022.09.13"]
[WhiteClock "0:00:20"]
[BlackClock "0:00:08"]

1. d4 {[%clk 0:03:00]}  Nf6 {[%clk 0:02:58]} 2. c4 {[%clk 0:02:59]}  e6 {[%clk 0:02:58]} 3. Nc3 {[%clk 0:02:59]}  Bb4 {[%clk 0:02:58]} 4. e3 {[%clk 0:03:00]}  d5 {[%clk 0:02:56]} 5. Bd2 {[%clk 0:03:00]}  O-O {[%clk 0:02:55]} 6. Nf3 {[%clk 0:03:00]}  c5 {[%clk 0:02:44]} 7. a3 {[%clk 0:03:00]}  Bxc3 {[%clk 0:02:43]} 8. Bxc3 {[%clk 0:03:01]}  Ne4 {[%clk 0:02:42]} 9. Rc1 {[%clk 0:03:01]}  Nxc3 {[%clk 0:02:42]} 10. Rxc3 {[%clk 0:03:02]}  cxd4 {[%clk 0:02:40]} 11. Nxd4 {[%clk 0:03:03]}  dxc4 {[%clk 0:02:36]} 12. Bxc4 {[%clk 0:03:04]}  Qe7 {[%clk 0:02:35]} 13. O-O {[%clk 0:03:01]}  Bd7 {[%clk 0:02:33]} 14. Be2 {[%clk 0:02:56]}  Nc6 {[%clk 0:02:32]} 15. Bf3 {[%clk 0:02:57]}  Ne5 {[%clk 0:02:04]} 16. Bxb7 {[%clk 0:02:42]}  Rab8 {[%clk 0:02:04]} 17. Nf3 {[%clk 0:01:59]}  Rxb7 {[%clk 0:01:42]} 18. Nxe5 {[%clk 0:01:58]}  Bb5 {[%clk 0:01:43]} 19. Re1 {[%clk 0:01:57]}  f6 {[%clk 0:01:42]} 20. Nf3 {[%clk 0:01:52]}  e5 {[%clk 0:01:43]} 21. Qc2 {[%clk 0:01:50]}  Rfb8 {[%clk 0:01:39]} 22. b4 {[%clk 0:01:47]}  Be8 {[%clk 0:01:36]} 23. Rc5 {[%clk 0:01:44]}  Rd7 {[%clk 0:01:28]} 24. h3 {[%clk 0:01:42]}  Rbd8 {[%clk 0:01:28]} 25. a4 {[%clk 0:01:26]}  Bg6 {[%clk 0:01:27]} 26. Qc3 {[%clk 0:01:24]}  Rd3 {[%clk 0:01:25]} 27. Qc1 {[%clk 0:01:19]}  Bh5 {[%clk 0:01:15]} 28. Nd4 {[%clk 0:01:06]}  Qf7 {[%clk 0:00:55]} 29. Rc7 {[%clk 0:01:01]}  Qa2 {[%clk 0:00:38]} 30. Nf5 {[%clk 0:00:51]}  Rd1 {[%clk 0:00:32]} 31. Rc8 {[%clk 0:00:30]}  Rxe1+ {[%clk 0:00:15]} 32. Qxe1 {[%clk 0:00:31]}  Rxc8 {[%clk 0:00:15]} 33. Ne7+ {[%clk 0:00:32]}  Kf7 {[%clk 0:00:15]} 34. Nxc8 {[%clk 0:00:33]}  Qxa4 {[%clk 0:00:15]} 35. Qc3 {[%clk 0:00:32]}  Qd1+ {[%clk 0:00:14]} 36. Kh2 {[%clk 0:00:32]}  Qd7 {[%clk 0:00:15]} 37. Qc5 {[%clk 0:00:32]}  a6 {[%clk 0:00:12]} 38. Nd6+ {[%clk 0:00:32]}  Ke6 {[%clk 0:00:10]} 39. Ne4 {[%clk 0:00:29]}  Kf7 {[%clk 0:00:10]} 40. Qc4+ {[%clk 0:00:28]}  Kg6 {[%clk 0:00:10]} 41. g4 {[%clk 0:00:25]}  Bxg4 {[%clk 0:00:10]} 42. hxg4 {[%clk 0:00:26]}  Qxg4 {[%clk 0:00:11]} 43. Qd3 {[%clk 0:00:21]}  f5 {[%clk 0:00:10]} 44. Qd6+ {[%clk 0:00:20]}  Kh5 {[%clk 0:00:11]} 45. Ng3+ {[%clk 0:00:20]}  Kg5 {[%clk 0:00:07]} 46. Qxe5 {[%clk 0:00:20]}  g6 {[%clk 0:00:07]} 47. Qe7+ {[%clk 0:00:18]}  Kh6 {[%clk 0:00:08]} 48. Qf8+ {[%clk 0:00:19]}  Kg5 {[%clk 0:00:08]} 49. f4+ {[%clk 0:00:20]} 1-0


[Site "https://www.chess.com"]